fUSD/lending_fUSD_20250804
["ID","MTS","AMOUNT","RATE_DAILY","PERIOD"]
[377227926,1754305867372,-8227.11,0.00038356,2]
[377227927,1754305867381,-1206.28,0.00038356,2]
[377227928,1754305867391,-1206.28,0.00038356,2]
[377227929,1754305867400,-1206.28,0.00038356,2]
[377227930,1754305867410,-11138.27,0.00038356,2]
[377227931,1754305867420,-458.47,0.00038356,2]
[377227932,1754305867429,-400.0,0.00038356,2]
[377227933,1754305867439,-1728.23,0.00038356,2]
[377227934,1754305867448,-400.0,0.00038356,2]
[377227935,1754305867458,-9079.6,0.00038356,2]
[377227936,1754305867467,-400.0,0.00038356,2]
[377227937,1754305867476,-893.35,0.00038356,2]
[377227938,1754305867486,-2159.66,0.00038356,2]
[377227939,1754305867495,-1618.06,0.00038356,2]
[377227940,1754305867504,-445.29,0.00038356,2]
[377227941,1754305867514,-1756.78,0.00038356,2]
[377227942,1754305867523,-2736.99,0.00038356,2]
[377227943,1754305867532,-581.83,0.00038356,2]
[377227944,1754305867542,-1394.73,0.00038356,2]
[377227945,1754305867551,-1865.31,0.00038356,2]
[377227946,1754305867561,-400.0,0.00038356,2]
[377227947,1754305867570,-500.0,0.00038356,2]
[377227948,1754305867580,-500.0,0.00038356,2]
[377227949,1754305867590,-500.0,0.00038356,2]
[377227950,1754305867599,-500.0,0.00038356,2]
[377227951,1754305867609,-997.42,0.00038356,2]
[377227952,1754305867618,-500.0,0.00038356,2]
[377227953,1754305867628,-1087.63,0.00038356,2]
[377227954,1754305867638,-500.0,0.00038356,2]
[377227955,1754305867647,-500.0,0.00038356,2]
[377227956,1754305867657,-500.0,0.00038356,2]
[377227957,1754305867666,-500.0,0.00038356,2]
[377227958,1754305867677,-500.0,0.00038356,2]
[377227959,1754305867687,-400.0,0.00038356,2]
[377227960,1754305867696,-3648.6,0.00038356,2]
[377227961,1754305867706,-510.65,0.00038356,2]
[377227962,1754305867715,-400.0,0.00038356,2]
[377227963,1754305867725,-1453.57,0.00038356,2]
[377227964,1754305867734,-520.48,0.00038356,2]
[377227965,1754305867744,-1453.57,0.00038356,2]
[377227966,1754305867753,-1453.57,0.00038356,2]
[377227967,1754305867762,-1453.57,0.00038356,2]
[377227968,1754305867771,-1873.61,0.00038356,2]
[377227969,1754305867780,-1453.57,0.00038356,2]
[377227970,1754305867790,-1200.71,0.00038356,2]
[377227971,1754305867799,-400.0,0.00038356,2]
[377227972,1754305867808,-400.0,0.00038356,2]
[377227973,1754305867817,-1453.57,0.00038356,2]
[377227974,1754305867826,-1453.57,0.00038356,2]
[377227975,1754305867835,-875.07,0.00038356,2]
[377227976,1754305867845,-1453.57,0.00038356,2]
[377227977,1754305867854,-1453.57,0.00038356,2]
[377227978,1754305867863,-1629.46,0.00038356,2]
[377227979,1754305867872,-1453.57,0.00038356,2]
[377227980,1754305867882,-531.96,0.00038356,2]
[377227981,1754305867892,-1001.01,0.00038356,2]
[377227982,1754305867903,-6021.56,0.00038356,2]
[377227983,1754305867912,-400.0,0.00038356,2]
[377227984,1754305867921,-3451.49,0.00038356,2]
[377227985,1754305867930,-688.87,0.00038356,2]
[377227986,1754305867939,-400.0,0.00038356,2]
[377227987,1754305867948,-400.0,0.00038356,2]
[377227988,1754305867957,-1875.95,0.00038356,2]
[377227989,1754305867972,-659.18,0.00038356,2]
[377227990,1754305867992,-400.0,0.00038356,2]
[377227991,1754305868010,-905.16,0.00038356,2]
[377227992,1754305868029,-1539.83,0.00038356,2]
[377227993,1754305868046,-1377.16,0.00038356,2]
[377227994,1754305868063,-400.0,0.00038356,2]
[377227995,1754305868081,-618.84,0.00038356,2]
[377227996,1754305868101,-2160.03,0.00038356,2]
[377227997,1754305868119,-491.69,0.00038356,2]
[377227998,1754305868137,-400.0,0.00038356,2]
[377227999,1754305868156,-400.0,0.00038356,2]
[377228000,1754305868173,-476.99,0.00038356,2]
[377228001,1754305868186,-727.44,0.00038356,2]
[377228002,1754305868205,-1286.32,0.00038356,2]
[377228003,1754305868220,-580.3,0.00038356,2]
[377228004,1754305868237,-400.69740565,0.00038356,2]
[377228005,1754305868252,-713.76,0.00038356,2]
[377228006,1754305868267,-400.0,0.00038356,2]
[377228007,1754305868282,-582.52,0.00038356,2]
[377228008,1754305868297,-1584.46,0.00038356,2]
[377228009,1754305868313,-400.0,0.00038356,2]
[377228010,1754305868327,-400.0,0.00038356,2]
[377228011,1754305868343,-400.0,0.00038356,2]
[377228012,1754305868357,-400.0,0.00038356,2]
[377228013,1754305868372,-406.58,0.00038356,2]
[377228014,1754305868387,-6316.72,0.00038356,2]
[377228015,1754305868402,-1515.13,0.00038356,2]
[377228016,1754305868418,-1891.71,0.00038356,2]
[377228017,1754305868433,-400.83861552,0.00038356,2]
[377228018,1754305868448,-3107.23,0.00038356,2]
[377228019,1754305868463,-400.0,0.00038356,2]
[377228020,1754305868478,-1032.57,0.00038356,2]
[377228021,1754305868493,-400.0,0.00038356,2]
[377228022,1754305868508,-400.0,0.00038356,2]
[377228023,1754305868532,-1732.93,0.00038356,2]
[377228024,1754305868546,-1698.39,0.00038356,2]
[377228025,1754305868561,-400.0,0.00038356,2]
[377228026,1754305868576,-1238.95,0.00038356,2]
[377228027,1754305868590,-400.0,0.00038356,2]
[377228028,1754305868613,-1670.39,0.00038356,2]
[377228029,1754305868627,-400.0,0.00038356,2]
[377228030,1754305868642,-400.0,0.00038356,2]
[377228031,1754305868657,-1178.78,0.00038356,2]
[377228032,1754305868671,-2052.93,0.00038356,2]
[377228033,1754305868685,-1644.64,0.00038356,2]
[377228034,1754305868700,-1066.08,0.00038356,2]
[377228035,1754305868715,-252.14341297,0.00038356,2]
[377228036,1754305868728,-400.0,0.00038356,2]
[377228037,1754305868743,-1868.67,0.00038356,2]
[377228038,1754305868759,-942.3,0.00038356,2]
[377228039,1754305868776,-533.88,0.00038356,2]
[377228040,1754305868791,-1689.09,0.00038356,2]
[377228041,1754305868806,-400.0,0.00038356,2]
[377228042,1754305868821,-400.0,0.00038356,2]
[377228043,1754305868837,-462.71431637,0.00038356,2]
[377228044,1754305868851,-1572.92,0.00038356,2]
[377228045,1754305868866,-1545.77,0.00038356,2]
[377228046,1754305868881,-1264.88,0.00038356,2]
[377228047,1754305868898,-1722.33,0.00038356,2]
[377228048,1754305868913,-1113.34,0.00038356,2]
[377228049,1754305868934,-8388.36,0.00038356,2]
[377228050,1754305868951,-1766.11,0.00038356,2]
[377228051,1754305868966,-1306.14,0.00038356,2]
[377228052,1754305868982,-1596.57,0.00038356,2]
[377228053,1754305868997,-819.3,0.00038356,2]
[377228054,1754305869012,-431.73,0.00038356,2]
[377228055,1754305869026,-400.0,0.00038356,2]
[377228056,1754305869041,-400.0,0.00038356,2]
[377228057,1754305869056,-400.0,0.00038356,2]
[377228058,1754305869070,-1501.24,0.00038356,2]
[377228059,1754305869086,-873.38,0.00038356,2]
[377228060,1754305869101,-1156.04,0.00038356,2]
[377228061,1754305869115,-400.0,0.00038356,2]
[377228062,1754305869131,-1010.21,0.00038356,2]
[377228063,1754305869145,-500.0,0.00038356,2]
[377228064,1754305869160,-400.0,0.00038356,2]
[377228065,1754305869175,-500.0,0.00038356,2]
[377228066,1754305869190,-1469.78,0.00038356,2]
[377228067,1754305869204,-500.0,0.00038356,2]
[377228068,1754305869220,-500.0,0.00038356,2]
[377228069,1754305869235,-500.0,0.00038356,2]
[377228070,1754305869251,-500.0,0.00038356,2]
[377228071,1754305869265,-500.0,0.00038356,2]
[377228072,1754305869280,-500.0,0.00038356,2]
[377228073,1754305869296,-4195.1,0.00038356,2]
[377228074,1754305869310,-253.17554095,0.00038356,2]
[377228075,1754305869324,-400.0,0.00038356,2]
[377228076,1754305869339,-1925.04,0.00038356,2]
[377228077,1754305869355,-400.0,0.00038356,2]
[377228078,1754305869371,-714.27,0.00038356,2]
[377228079,1754305869385,-400.0,0.00038356,2]
[377228080,1754305869400,-400.0,0.00038356,2]
[377228081,1754305869415,-500.0,0.00038356,2]
[377228082,1754305869431,-1923.74,0.00038356,2]
[377228083,1754305869446,-400.0,0.00038356,2]
[377228084,1754305869462,-500.0,0.00038356,2]
[377228085,1754305869477,-1747.36,0.00038356,2]
[377228086,1754305869492,-817.57,0.00038356,2]
[377228087,1754305869506,-500.0,0.00038356,2]
[377228088,1754305869521,-500.0,0.00038356,2]
[377228089,1754305869535,-500.0,0.00038356,2]
[377228090,1754305869551,-500.0,0.00038356,2]
[377228091,1754305869566,-1374.38,0.00038356,2]
[377228092,1754305869580,-1337.16,0.00038356,2]
[377228093,1754305869595,-500.0,0.00038356,2]
[377228094,1754305869610,-500.0,0.00038356,2]
[377228095,1754305869625,-500.0,0.00038356,2]
[377228096,1754305869639,-694.89,0.00038356,2]
[377228097,1754305869653,-1746.78,0.00038356,2]
[377228098,1754305869668,-400.0,0.00038356,2]
[377228099,1754305869683,-400.0,0.00038356,2]
[377228100,1754305869697,-670.37,0.00038356,2]
[377228101,1754305869712,-1448.9,0.00038356,2]
[377228102,1754305869727,-400.0,0.00038356,2]
[377228103,1754305869741,-400.0,0.00038356,2]
[377228104,1754305869755,-5776.09,0.00038356,2]
[377228105,1754305869772,-400.0,0.00038356,2]
[377228106,1754305869787,-1793.17,0.00038356,2]
[377228107,1754305869802,-1183.71,0.00038356,2]
[377228108,1754305869816,-1363.88,0.00038356,2]
[377228109,1754305869831,-400.0,0.00038356,2]
[377228110,1754305869850,-400.0,0.00038356,2]
[377228111,1754305869872,-400.97855233,0.00038356,2]
[377228112,1754305869886,-457.60683794,0.00038356,2]
[377228113,1754305869905,-400.0,0.00038356,2]
[377228114,1754305869920,-6346.76,0.00038356,2]
[377228115,1754305869935,-1230.85,0.00038356,2]
[377228116,1754305869949,-455.16,0.00038356,2]
[377228117,1754305869963,-400.0,0.00038356,2]
[377228118,1754305869978,-400.0,0.00038356,2]
[377228119,1754305869993,-941.56,0.00038356,2]
[377228120,1754305870007,-1208.54,0.00038356,2]
[377228121,1754305870021,-400.0,0.00038356,2]
[377228122,1754305870036,-2444.62,0.00038356,2]
[377228123,1754305870049,-400.0,0.00038356,2]
[377228124,1754305870064,-1603.12,0.00038356,2]
[377228125,1754305870078,-1266.17,0.00038356,2]
[377228126,1754305870092,-968.13,0.00038356,2]
[377228127,1754305870106,-400.0,0.00038356,2]
[377228128,1754305870120,-642.68,0.00038356,2]
[377228129,1754305870136,-400.0,0.00038356,2]
[377228130,1754305870149,-2358.63,0.00038356,2]
[377228131,1754305870164,-1754.23,0.00038356,2]
[377228132,1754305870178,-521.68,0.00038356,2]
[377228133,1754305870192,-400.0,0.00038356,2]
[377228134,1754305870206,-400.0,0.00038356,2]
[377228135,1754305870220,-400.0,0.00038356,2]
[377228136,1754305870234,-2154.85,0.00038356,2]
[377228137,1754305870247,-400.0,0.00038356,2]
[377228138,1754305870261,-403.29,0.00038356,2]
[377228139,1754305870274,-532.52,0.00038356,2]
[377228140,1754305870288,-400.0,0.00038356,2]
[377228141,1754305870302,-1735.99,0.00038356,2]
[377228142,1754305870316,-1686.63,0.00038356,2]
[377228143,1754305870330,-400.0,0.00038356,2]
[377228144,1754305870344,-403.11,0.00038356,2]
[377228145,1754305870358,-759.33,0.00038356,2]
[377228146,1754305870373,-1873.9,0.00038356,2]
[377228147,1754305870387,-400.0,0.00038356,2]
[377228148,1754305870400,-400.0,0.00038356,2]
[377228149,1754305870414,-1593.33,0.00038356,2]
[377228150,1754305870430,-1673.67,0.00038356,2]
[377228151,1754305870443,-1754.05,0.00038356,2]
[377228152,1754305870453,-736.813336,0.00038356,2]
[377228153,1754305870851,-914.89,0.00038356,2]
[377228154,1754305870902,-1464.44,0.00038356,2]
[377228155,1754305870926,-2045.74,0.00038356,2]
[377228156,1754305870936,-773.62,0.00038356,2]
[377228157,1754305870946,-400.0,0.00038356,2]
[377228158,1754305870956,-1378.84,0.00038356,2]
[377228159,1754305870965,-783.24,0.00038356,2]
[377228160,1754305870976,-652.46,0.00038356,2]
[377228161,1754305870986,-400.0,0.00038356,2]
[377228162,1754305870995,-182.30952268,0.00038356,2]
[377228163,1754305871004,-4332.09,0.00038356,2]
[377228164,1754305871013,-400.0,0.00038356,2]
[377228165,1754305871023,-557.78,0.00038356,2]
[377228166,1754305871032,-472.180256,0.00038356,2]
[377228167,1754305871041,-400.0,0.00038356,2]
[377228168,1754305871051,-505.58,0.00038356,2]
[377228169,1754305871060,-2822.69,0.00038356,2]
[377228170,1754305871070,-752.876045,0.00038356,2]
[377228171,1754305871079,-781.05,0.00038356,2]
[377228172,1754305871088,-1582.56,0.00038356,2]
[377228173,1754305871098,-17713.84,0.00038356,2]
[377228174,1754305871109,-437.18,0.00038356,2]
[377228175,1754305871119,-1692.49,0.00038356,2]
[377228176,1754305871129,-400.0,0.00038356,2]
[377228177,1754305871137,-4257.32,0.00038356,2]
[377228178,1754305871147,-400.0,0.00038356,2]
[377228179,1754305871156,-1474.41,0.00038356,2]
[377228180,1754305871166,-400.0,0.00038356,2]
[377228181,1754305871176,-12684.74,0.00038356,2]
[377228182,1754305871185,-958.47,0.00038356,2]
[377228183,1754305871195,-8555.46,0.00038356,2]
[377228184,1754305871204,-400.0,0.00038356,2]
[377228185,1754305871213,-400.0,0.00038356,2]
[377228186,1754305871223,-8447.34,0.00038356,2]
[377228187,1754305871232,-2271.19,0.00038356,2]
[377228188,1754305871242,-400.0,0.00038356,2]
[377228189,1754305871251,-1233.77,0.00038356,2]
[377228190,1754305871261,-1370.77,0.00038356,2]
[377228191,1754305871270,-920.62,0.00038356,2]
[377228192,1754305871280,-400.0,0.00038356,2]
[377228193,1754305871290,-400.0,0.00038356,2]
[377228194,1754305871300,-400.4496629,0.00038356,2]
[377228195,1754305871309,-1817.19,0.00038356,2]
[377228196,1754305871320,-1888.39,0.00038356,2]
[377228197,1754305871330,-1431.25,0.00038356,2]
[377228198,1754305871339,-1907.39,0.00038356,2]
[377228199,1754305871349,-400.0,0.00038356,2]
[377228200,1754305871359,-400.0,0.00038356,2]
[377228201,1754305871368,-1147.83,0.00038356,2]
[377228202,1754305871378,-400.0,0.00038356,2]
[377228203,1754305871387,-400.0,0.00038356,2]
[377228204,1754305871397,-400.0,0.00038356,2]
[377228205,1754305871407,-400.0,0.00038356,2]
[377228206,1754305871416,-400.0,0.00038356,2]
[377228207,1754305871426,-2687.79,0.00038356,2]
[377228208,1754305871436,-2068.75,0.00038356,2]
[377228209,1754305871445,-400.0,0.00038356,2]
[377228210,1754305871455,-283.06,0.00038356,2]
[377228211,1754305871465,-400.0,0.00038356,2]
[377228212,1754305871474,-400.0,0.00038356,2]
[377228213,1754305871484,-2214.61,0.00038356,2]
[377228214,1754305871493,-400.0,0.00038356,2]
[377228215,1754305871503,-1614.22,0.00038356,2]
[377228216,1754305871512,-802.2,0.00038356,2]
[377228217,1754305871521,-670.02,0.00038356,2]
[377228218,1754305871530,-1475.5,0.00038356,2]
[377228219,1754305871539,-78789.54,0.00038356,2]
[377228220,1754305871548,-400.0,0.00038356,2]
[377228221,1754305871557,-400.0,0.00038356,2]
[377228222,1754305871567,-2169.93,0.00038356,2]
[377228223,1754305871576,-400.0,0.00038356,2]
[377228224,1754305871585,-509.11049315,0.00038356,2]
[377228225,1754305871594,-579.73,0.00038356,2]
[377228226,1754305871603,-400.0,0.00038356,2]
[377228227,1754305871612,-400.0,0.00038356,2]
[377228228,1754305871622,-400.0,0.00038356,2]
[377228229,1754305871631,-11200.4,0.00038356,2]
[377228230,1754305871640,-1690.87,0.00038356,2]
[377228231,1754305871650,-1258.18,0.00038356,2]
[377228232,1754305871659,-1594.85,0.00038356,2]
[377228233,1754305871669,-1475.71,0.00038356,2]
[377228234,1754305871680,-400.0,0.00038356,2]
[377228235,1754305871689,-1778.93,0.00038356,2]
[377228236,1754305871698,-400.0,0.00038356,2]
[377228237,1754305871707,-400.0,0.00038356,2]
[377228238,1754305871717,-1043.71,0.00038356,2]
[377228239,1754305871726,-3118.04,0.00038356,2]
[377228240,1754305871735,-898.73,0.00038356,2]
[377228241,1754305871744,-498.32,0.00038356,2]
[377228242,1754305871752,-1556.28,0.00038356,2]
[377228243,1754305871761,-1857.39,0.00038356,2]
[377228244,1754305871771,-7506.25,0.00038356,2]
[377228245,1754305871780,-1191.23,0.00038356,2]
[377228246,1754305871789,-400.0,0.00038356,2]
[377228247,1754305871798,-1349.97,0.00038356,2]
[377228248,1754305871807,-1741.31,0.00038356,2]
[377228249,1754305871817,-577.79,0.00038356,2]
[377228250,1754305871827,-1074.04,0.00038356,2]
[377228251,1754305871836,-3769.24,0.00038356,2]
[377228252,1754305871845,-988.14,0.00038356,2]
[377228253,1754305871855,-400.0,0.00038356,2]
[377228254,1754305871865,-1932.57,0.00038356,2]
[377228255,1754305871875,-514.73153906,0.00038356,2]
[377228256,1754305871884,-3095.42,0.00038356,2]
[377228257,1754305871895,-400.0,0.00038356,2]
[377228258,1754305871906,-1252.42,0.00038356,2]
[377228259,1754305871915,-1985.84,0.00038356,2]
[377228260,1754305871924,-400.0,0.00038356,2]
[377228261,1754305871934,-400.0,0.00038356,2]
[377228262,1754305871943,-1602.8,0.00038356,2]
[377228263,1754305871954,-1555.06,0.00038356,2]
[377228264,1754305871964,-3681.37,0.00038356,2]
[377228265,1754305871977,-3383.45,0.00038356,2]
[377228266,1754305871987,-400.0,0.00038356,2]
[377228267,1754305871996,-400.0,0.00038356,2]
[377228268,1754305872006,-495.93,0.00038356,2]
[377228269,1754305872015,-2072.61,0.00038356,2]
[377228270,1754305872025,-400.0,0.00038356,2]
[377228271,1754305872035,-1753.85,0.00038356,2]
[377228272,1754305872045,-1605.29,0.00038356,2]
[377228273,1754305872054,-568.4,0.00038356,2]
[377228274,1754305872064,-568.4,0.00038356,2]
[377228275,1754305872074,-568.4,0.00038356,2]
[377228276,1754305872083,-568.4,0.00038356,2]
[377228277,1754305872092,-400.0,0.00038356,2]
[377228278,1754305872102,-568.4,0.00038356,2]
[377228279,1754305872111,-400.0,0.00038356,2]
[377228280,1754305872121,-568.4,0.00038356,2]
[377228281,1754305872130,-400.0,0.00038356,2]
[377228282,1754305872140,-568.4,0.00038356,2]
[377228283,1754305872149,-400.0,0.00038356,2]
[377228284,1754305872159,-568.4,0.00038356,2]
[377228285,1754305872169,-568.4,0.00038356,2]
[377228286,1754305872179,-568.4,0.00038356,2]
[377228287,1754305872189,-1657.08,0.00038356,2]
[377228288,1754305872199,-1726.45,0.00038356,2]
[377228289,1754305872209,-2197.37,0.00038356,2]
[377228290,1754305872218,-1613.77,0.00038356,2]
[377228291,1754305872227,-400.0,0.00038356,2]
[377228292,1754305872237,-1109.72,0.00038356,2]
[377228293,1754305872246,-400.0,0.00038356,2]
[377228294,1754305872255,-1790.09,0.00038356,2]
[377228295,1754305872265,-400.0,0.00038356,2]
[377228296,1754305872274,-1265.39,0.00038356,2]
[377228297,1754305872283,-400.0,0.00038356,2]
[377228298,1754305872293,-736.813337,0.00038356,2]
[377228299,1754305872303,-400.0,0.00038356,2]
[377228300,1754305872313,-531.77,0.00038356,2]
[377228301,1754305872322,-400.0,0.00038356,2]
[377228302,1754305872332,-994.35,0.00038356,2]
[377228303,1754305872342,-1207.63,0.00038356,2]
[377228304,1754305872351,-400.0,0.00038356,2]
[377228305,1754305872361,-1044.0,0.00038356,2]
[377228306,1754305872370,-400.0,0.00038356,2]
[377228307,1754305872380,-1697.44,0.00038356,2]
[377228308,1754305872390,-1153.38,0.00038356,2]
[377228309,1754305872399,-472.180256,0.00038356,2]
[377228310,1754305872409,-400.0,0.00038356,2]
[377228311,1754305872419,-1273.07,0.00038356,2]
[377228312,1754305872430,-1809.15,0.00038356,2]
[377228313,1754305872439,-971.37,0.00038356,2]
[377228314,1754305872449,-400.0,0.00038356,2]
[377228315,1754305872459,-1518.17,0.00038356,2]
[377228316,1754305872468,-8777.73,0.00038356,2]
[377228317,1754305872478,-596.6,0.00038356,2]
[377228318,1754305872487,-6082.8,0.00038356,2]
[377228319,1754305872497,-433.43681125,0.00038356,2]
[377228320,1754305872506,-752.876045,0.00038356,2]
[377228321,1754305872516,-2275.44,0.00038356,2]
[377228322,1754305872526,-200.18957895,0.00038356,2]
[377228323,1754305872536,-1600.04,0.00038356,2]
[377228324,1754305872545,-1037.03,0.00038356,2]
[377228325,1754305872555,-400.0,0.00038356,2]
[377228326,1754305872565,-490.62,0.00038356,2]
[377228327,1754305872575,-599.54,0.00038356,2]
[377228328,1754305872584,-400.0,0.00038356,2]
[377228329,1754305872594,-1213.48,0.00038356,2]
[377228330,1754305872603,-797.89,0.00038356,2]
[377228331,1754305872613,-1097.82,0.00038356,2]
[377228332,1754305872624,-400.0,0.00038356,2]
[377228333,1754305872633,-596.19,0.00038356,2]
[377228334,1754305872643,-448.66,0.00038356,2]
[377228335,1754305872652,-10707.5,0.00038356,2]
[377228336,1754305872662,-4934.5,0.00038356,2]
[377228337,1754305872671,-400.0,0.00038356,2]
[377228338,1754305872682,-1936.12,0.00038356,2]
[377228339,1754305872691,-400.0,0.00038356,2]
[377228340,1754305872701,-2575.64,0.00038356,2]
[377228341,1754305872711,-400.0,0.00038356,2]
[377228342,1754305872720,-2188.32,0.00038356,2]
[377228343,1754305872731,-400.0,0.00038356,2]
[377228344,1754305872741,-400.0,0.00038356,2]
[377228345,1754305872750,-400.0,0.00038356,2]
[377228346,1754305872759,-1048.1,0.00038356,2]
[377228347,1754305872769,-586.94,0.00038356,2]
[377228348,1754305872779,-1283.58,0.00038356,2]
[377228349,1754305872789,-400.0,0.00038356,2]
[377228350,1754305872798,-1614.51,0.00038356,2]
[377228351,1754305872808,-400.0,0.00038356,2]
[377228352,1754305872819,-1367.27,0.00038356,2]
[377228353,1754305872828,-400.0,0.00038356,2]
[377228354,1754305872838,-400.0,0.00038356,2]
[377228355,1754305872847,-3431.45,0.00038356,2]
[377228356,1754305872857,-400.0,0.00038356,2]
[377228357,1754305872867,-958.06,0.00038356,2]
[377228358,1754305872876,-400.0,0.00038356,2]
[377228359,1754305872885,-16704.11,0.00038356,2]
[377228360,1754305872898,-1799.3,0.00038356,2]
[377228361,1754305872907,-500.49,0.00038356,2]
[377228362,1754305872917,-1400.57,0.00038356,2]
[377228363,1754305872927,-1128.88,0.00038356,2]
[377228364,1754305872937,-953.11,0.00038356,2]
[377228365,1754305872946,-400.0,0.00038356,2]
[377228366,1754305872955,-1339.76,0.00038356,2]
[377228367,1754305872965,-4814.39,0.00038356,2]
[377228368,1754305872978,-1254.59,0.00038356,2]
[377228369,1754305872987,-400.0,0.00038356,2]
[377228370,1754305872997,-871.27,0.00038356,2]
[377228371,1754305873007,-400.0,0.00038356,2]
[377228372,1754305873016,-2112.05,0.00038356,2]
[377228373,1754305873026,-1494.19,0.00038356,2]
[377228374,1754305873035,-1442.54,0.00038356,2]
[377228375,1754305873044,-525.6,0.00038356,2]
[377228376,1754305873054,-637.09,0.00038356,2]
[377228377,1754305873064,-400.0,0.00038356,2]
[377228378,1754305873073,-441.57509922,0.00038356,2]
[377228379,1754305873083,-2192.65,0.00038356,2]
[377228380,1754305873092,-2310.1,0.00038356,2]
[377228381,1754305873102,-3310.33,0.00038356,2]
[377228382,1754305873111,-571.02,0.00038356,2]
[377228383,1754305873121,-1651.01,0.00038356,2]
[377228384,1754305873130,-400.0,0.00038356,2]
[377228385,1754305873139,-845.12,0.00038356,2]
[377228386,1754305873148,-533.36,0.00038356,2]
[377228387,1754305873158,-400.0,0.00038356,2]
[377228388,1754305873168,-1650.75,0.00038356,2]
[377228389,1754305873177,-781.29,0.00038356,2]
[377228390,1754305873186,-429.82,0.00038356,2]
[377228391,1754305873195,-400.0,0.00038356,2]
[377228392,1754305873205,-400.0,0.00038356,2]
[377228393,1754305873214,-1177.78,0.00038356,2]
[377228394,1754305873224,-400.0,0.00038356,2]
[377228395,1754305873233,-500.0,0.00038356,2]
[377228396,1754305873243,-500.0,0.00038356,2]
[377228397,1754305873253,-400.0,0.00038356,2]
[377228398,1754305873262,-500.0,0.00038356,2]
[377228399,1754305873272,-400.0,0.00038356,2]
[377228400,1754305873281,-1386.18374485,0.00038365,2]
[377228401,1754305873291,-628.06011456,0.00038373,5]
[377228402,1754305873301,-500.0,0.00038373,5]
[377228403,1754305873311,-500.0,0.00038373,5]
[377228404,1754305873322,-500.4582055,0.00038373,5]
[377228405,1754305873331,-500.0,0.00038373,5]
[377228406,1754305873341,-500.0,0.00038373,5]
[377228407,1754305873351,-502.98137899,0.00038373,5]
[377228408,1754305873360,-168.74650888,0.00038373,5]
[377228409,1754305873370,-500.0,0.00038373,5]
[377228410,1754305873380,-500.0,0.00038373,5]
[377228411,1754305873390,-500.71859585,0.00038373,5]
[377228412,1754305873400,-500.0,0.00038373,5]
[377228413,1754305873409,-500.46973082,0.00038373,5]
[377228414,1754305873419,-500.0,0.00038373,5]
[377228415,1754305873430,-500.43177966,0.00038373,5]
[377228416,1754305873439,-526.77461878,0.00038373,5]
[377228417,1754305873450,-500.0,0.00038373,5]
[377228418,1754305873459,-165.78052865,0.00038373,5]
[377228419,1754305873469,-500.0,0.00038373,5]
[377228420,1754305873479,-500.0,0.00038373,5]
[377228421,1754305873488,-607.50648958,0.00038373,5]
[377228422,1754305873497,-500.0,0.00038373,5]
[377228423,1754305873507,-500.0,0.00038373,5]
[377228424,1754305873517,-500.0,0.00038373,5]
[377228425,1754305873526,-500.0,0.00038373,5]